[Event "Titled Tuesday Blitz December 7 2021"]
[White "Pranav, V"]
[Black "Azadaliyev, Jahandar"]
[WhiteFideId "25060783"]
[BlackFideId "13425811"]
[WhiteElo "2351"]
[BlackElo "1795"]
[Result "1-0"]
[Round "04"]
[TimeControl "180+1"]
[Date "2021.12.07"]
[WhiteClock "0:00:43"]
[BlackClock "0:00:21"]

1. e4 {[%clk 0:03:00]}  c6 {[%clk 0:02:59]} 2. d4 {[%clk 0:02:59]}  d5 {[%clk 0:03:00]} 3. e5 {[%clk 0:03:00]}  Bf5 {[%clk 0:03:00]} 4. c4 {[%clk 0:03:01]}  dxc4 {[%clk 0:02:59]} 5. Bxc4 {[%clk 0:03:00]}  e6 {[%clk 0:03:00]} 6. Nc3 {[%clk 0:03:00]}  Nd7 {[%clk 0:03:00]} 7. Nge2 {[%clk 0:03:00]}  Ne7 {[%clk 0:03:00]} 8. Ng3 {[%clk 0:02:59]}  Bg6 {[%clk 0:03:00]} 9. Nge4 {[%clk 0:03:00]}  Nd5 {[%clk 0:02:58]} 10. O-O {[%clk 0:03:00]}  N7b6 {[%clk 0:02:57]} 11. Bb3 {[%clk 0:02:59]}  Be7 {[%clk 0:02:55]} 12. Re1 {[%clk 0:02:59]}  O-O {[%clk 0:02:54]} 13. g3 {[%clk 0:02:53]}  Qc7 {[%clk 0:02:53]} 14. h4 {[%clk 0:02:53]}  h6 {[%clk 0:02:43]} 15. Bd2 {[%clk 0:02:41]}  Rad8 {[%clk 0:02:41]} 16. Rc1 {[%clk 0:02:40]}  Nxc3 {[%clk 0:02:39]} 17. bxc3 {[%clk 0:02:36]}  c5 {[%clk 0:02:37]} 18. Qg4 {[%clk 0:02:32]}  Bf5 {[%clk 0:02:34]} 19. Qf3 {[%clk 0:02:31]}  cxd4 {[%clk 0:02:31]} 20. cxd4 {[%clk 0:02:32]}  Qd7 {[%clk 0:02:31]} 21. Be3 {[%clk 0:02:14]}  Nd5 {[%clk 0:02:20]} 22. Bd2 {[%clk 0:02:14]}  Ba3 {[%clk 0:02:15]} 23. Rcd1 {[%clk 0:02:13]}  Qc6 {[%clk 0:02:06]} 24. Bxh6 {[%clk 0:01:50]}  gxh6 {[%clk 0:01:54]} 25. Bxd5 {[%clk 0:01:49]}  Rxd5 {[%clk 0:01:54]} 26. Nf6+ {[%clk 0:01:49]}  Kg7 {[%clk 0:01:54]} 27. Qxa3 {[%clk 0:01:41]}  Rdd8 {[%clk 0:01:37]} 28. Qe3 {[%clk 0:01:26]}  Rd5 {[%clk 0:01:16]} 29. Rc1 {[%clk 0:01:24]}  Qb5 {[%clk 0:01:10]} 30. a4 {[%clk 0:01:12]}  Qa5 {[%clk 0:01:05]} 31. Nxd5 {[%clk 0:01:05]}  Qxd5 {[%clk 0:01:06]} 32. Rc5 {[%clk 0:01:05]}  Qa2 {[%clk 0:01:04]} 33. d5 {[%clk 0:01:03]}  exd5 {[%clk 0:01:02]} 34. Qd4 {[%clk 0:00:58]}  Be6 {[%clk 0:01:01]} 35. Rc3 {[%clk 0:00:57]}  Qb2 {[%clk 0:00:56]} 36. Rd1 {[%clk 0:00:50]}  a6 {[%clk 0:00:48]} 37. a5 {[%clk 0:00:49]}  Qb5 {[%clk 0:00:42]} 38. Rf3 {[%clk 0:00:46]}  Qxa5 {[%clk 0:00:37]} 39. Rf6 {[%clk 0:00:47]}  Rh8 {[%clk 0:00:29]} 40. Rc1 {[%clk 0:00:47]}  b5 {[%clk 0:00:24]} 41. Rc6 {[%clk 0:00:45]}  b4 {[%clk 0:00:22]} 42. Rcxe6 {[%clk 0:00:44]}  fxe6 {[%clk 0:00:22]} 43. Qg4+ {[%clk 0:00:43]}  Kh7 {[%clk 0:00:21]} 44. Rf7# {[%clk 0:00:43]} 1-0


[Site "https://www.chess.com"]

[Event "Titled Tuesday Blitz December 7 2021"]
[White "Rasulov, Vugar"]
[Black "Dzhaparov, Medet"]
[WhiteFideId "13402390"]
[BlackFideId "13803689"]
[WhiteElo "2560"]
[BlackElo "1702"]
[Result "1-0"]
[Round "04"]
[TimeControl "180+1"]
[Date "2021.12.07"]
[WhiteClock "0:02:22"]
[BlackClock "0:00:03"]

1. e4 {[%clk 0:03:00]}  e5 {[%clk 0:02:59]} 2. Nf3 {[%clk 0:03:01]}  Nc6 {[%clk 0:02:59]} 3. Bb5 {[%clk 0:03:01]}  a6 {[%clk 0:02:59]} 4. Ba4 {[%clk 0:03:00]}  Nf6 {[%clk 0:02:59]} 5. O-O {[%clk 0:03:00]}  Be7 {[%clk 0:02:59]} 6. Re1 {[%clk 0:03:00]}  b5 {[%clk 0:03:00]} 7. Bb3 {[%clk 0:03:01]}  O-O {[%clk 0:03:00]} 8. c3 {[%clk 0:03:01]}  d5 {[%clk 0:02:58]} 9. exd5 {[%clk 0:03:01]}  Nxd5 {[%clk 0:02:58]} 10. Nxe5 {[%clk 0:03:01]}  Nxe5 {[%clk 0:02:59]} 11. Rxe5 {[%clk 0:03:02]}  c6 {[%clk 0:02:59]} 12. d3 {[%clk 0:03:02]}  Bd6 {[%clk 0:02:56]} 13. Re1 {[%clk 0:03:03]}  Bf5 {[%clk 0:02:48]} 14. Nd2 {[%clk 0:03:01]}  Nf4 {[%clk 0:02:45]} 15. Ne4 {[%clk 0:02:59]}  Nxd3 {[%clk 0:02:37]} 16. Bg5 {[%clk 0:02:59]}  Qd7 {[%clk 0:01:21]} 17. Re3 {[%clk 0:02:54]}  Rfe8 {[%clk 0:00:34]} 18. Rxd3 {[%clk 0:02:41]}  Bxe4 {[%clk 0:00:34]} 19. Rxd6 {[%clk 0:02:38]}  Qf5 {[%clk 0:00:33]} 20. Bh4 {[%clk 0:02:31]}  h5 {[%clk 0:00:20]} 21. Bg3 {[%clk 0:02:29]}  Qg5 {[%clk 0:00:16]} 22. Qd2 {[%clk 0:02:28]}  Qf5 {[%clk 0:00:10]} 23. h4 {[%clk 0:02:26]}  a5 {[%clk 0:00:06]} 24. a3 {[%clk 0:02:24]}  a4 {[%clk 0:00:06]} 25. Ba2 {[%clk 0:02:25]}  Ra7 {[%clk 0:00:05]} 26. Rd8 {[%clk 0:02:23]}  Re7 {[%clk 0:00:04]} 27. Rxe8+ {[%clk 0:02:23]}  Rxe8 {[%clk 0:00:05]} 28. Re1 {[%clk 0:02:24]}  Qg4 {[%clk 0:00:04]} 29. Qf4 {[%clk 0:02:24]}  Qg6 {[%clk 0:00:03]} 30. Bb1 {[%clk 0:02:23]}  f5 {[%clk 0:00:02]} 31. Bxe4 {[%clk 0:02:23]}  fxe4 {[%clk 0:00:03]} 32. Qg5 {[%clk 0:02:22]} 1-0


[Site "https://www.chess.com"]

[Event "Titled Tuesday Blitz December 7 2021"]
[White "Shpanko, Nadiia"]
[Black "Atakhan, Abtin"]
[WhiteFideId "14132400"]
[BlackFideId "22502203"]
[WhiteElo "2139"]
[BlackElo "2119"]
[Result "0-1"]
[Round "04"]
[TimeControl "180+1"]
[Date "2021.12.07"]
[WhiteClock "0:00:15"]
[BlackClock "0:00:14"]

1. e4 {[%clk 0:03:00]}  c6 {[%clk 0:02:25]} 2. d4 {[%clk 0:02:59]}  d5 {[%clk 0:02:25]} 3. Nc3 {[%clk 0:02:59]}  dxe4 {[%clk 0:02:25]} 4. Nxe4 {[%clk 0:03:00]}  Nf6 {[%clk 0:02:26]} 5. Nxf6+ {[%clk 0:02:59]}  exf6 {[%clk 0:02:27]} 6. Nf3 {[%clk 0:02:56]}  Bd6 {[%clk 0:02:26]} 7. Be2 {[%clk 0:02:45]}  O-O {[%clk 0:02:26]} 8. O-O {[%clk 0:02:44]}  Bg4 {[%clk 0:02:25]} 9. h3 {[%clk 0:02:44]}  Bh5 {[%clk 0:02:24]} 10. Nh4 {[%clk 0:02:41]}  Bg6 {[%clk 0:02:24]} 11. Nxg6 {[%clk 0:02:39]}  hxg6 {[%clk 0:02:25]} 12. c3 {[%clk 0:02:37]}  Nd7 {[%clk 0:02:24]} 13. Be3 {[%clk 0:02:34]}  Qc7 {[%clk 0:02:23]} 14. Qc2 {[%clk 0:02:26]}  f5 {[%clk 0:02:21]} 15. Bf3 {[%clk 0:02:18]}  Rfe8 {[%clk 0:02:16]} 16. Rfe1 {[%clk 0:02:17]}  Re7 {[%clk 0:01:58]} 17. Bg5 {[%clk 0:02:12]}  Nf6 {[%clk 0:01:57]} 18. Bxf6 {[%clk 0:02:10]}  gxf6 {[%clk 0:01:58]} 19. Rxe7 {[%clk 0:02:05]}  Qxe7 {[%clk 0:01:59]} 20. Qe2 {[%clk 0:02:02]}  Qc7 {[%clk 0:01:51]} 21. Re1 {[%clk 0:02:00]}  Kg7 {[%clk 0:01:50]} 22. Qc4 {[%clk 0:01:52]}  Rh8 {[%clk 0:01:38]} 23. b4 {[%clk 0:01:41]}  a6 {[%clk 0:01:34]} 24. a4 {[%clk 0:01:40]}  Qd7 {[%clk 0:00:55]} 25. Qe2 {[%clk 0:01:27]}  g5 {[%clk 0:00:46]} 26. a5 {[%clk 0:00:45]}  Rh4 {[%clk 0:00:27]} 27. Qe8 {[%clk 0:00:38]}  Qc7 {[%clk 0:00:23]} 28. Bd1 {[%clk 0:00:20]}  Rh8 {[%clk 0:00:20]} 29. Bc2 {[%clk 0:00:19]}  Rxe8 {[%clk 0:00:20]} 30. Rxe8 {[%clk 0:00:20]}  Qd7 {[%clk 0:00:19]} 31. Re2 {[%clk 0:00:20]}  Bc7 {[%clk 0:00:19]} 32. g3 {[%clk 0:00:20]}  f4 {[%clk 0:00:18]} 33. g4 {[%clk 0:00:20]}  Qd6 {[%clk 0:00:18]} 34. f3 {[%clk 0:00:20]}  Qd5 {[%clk 0:00:16]} 35. Kf2 {[%clk 0:00:17]}  Qc4 {[%clk 0:00:15]} 36. Re7 {[%clk 0:00:16]}  Qxc3 {[%clk 0:00:14]} 37. Bd1 {[%clk 0:00:15]}  Qxd4+ {[%clk 0:00:14]} 38. Ke1 {[%clk 0:00:15]}  Qxb4+ {[%clk 0:00:14]} 0-1


[Site "https://www.chess.com"]

[Event "Titled Tuesday Blitz December 7 2021"]
[White "Shyaamnikhil P"]
[Black "Horvath, Dominik"]
[WhiteFideId "5024218"]
[BlackFideId "1642561"]
[WhiteElo "2300"]
[BlackElo "2336"]
[Result "1/2-1/2"]
[Round "04"]
[TimeControl "180+1"]
[Date "2021.12.07"]
[WhiteClock "0:00:06"]
[BlackClock "0:00:15"]

1. e3 {[%clk 0:03:00]}  e5 {[%clk 0:02:51]} 2. c4 {[%clk 0:03:00]}  Nf6 {[%clk 0:02:49]} 3. g4 {[%clk 0:03:00]}  d5 {[%clk 0:02:25]} 4. g5 {[%clk 0:02:58]}  Ne4 {[%clk 0:02:26]} 5. cxd5 {[%clk 0:02:37]}  Qxd5 {[%clk 0:01:55]} 6. Bg2 {[%clk 0:02:37]}  Nc6 {[%clk 0:01:45]} 7. a3 {[%clk 0:02:13]}  Bf5 {[%clk 0:01:17]} 8. Nc3 {[%clk 0:01:49]}  Nxc3 {[%clk 0:01:17]} 9. Bxd5 {[%clk 0:01:49]}  Nxd1 {[%clk 0:01:18]} 10. Kxd1 {[%clk 0:01:44]}  O-O-O {[%clk 0:01:16]} 11. Bg2 {[%clk 0:01:21]}  e4 {[%clk 0:01:14]} 12. f4 {[%clk 0:01:14]}  exf3 {[%clk 0:01:03]} 13. Nxf3 {[%clk 0:01:14]}  h6 {[%clk 0:00:59]} 14. h4 {[%clk 0:01:06]}  hxg5 {[%clk 0:00:59]} 15. hxg5 {[%clk 0:01:02]}  Rxh1+ {[%clk 0:01:00]} 16. Bxh1 {[%clk 0:01:02]}  Bd3 {[%clk 0:00:52]} 17. b4 {[%clk 0:00:59]}  Be7 {[%clk 0:00:43]} 18. Bb2 {[%clk 0:00:59]}  f6 {[%clk 0:00:40]} 19. gxf6 {[%clk 0:00:55]}  Bxf6 {[%clk 0:00:40]} 20. Bxf6 {[%clk 0:00:54]}  gxf6 {[%clk 0:00:41]} 21. Ke1 {[%clk 0:00:54]}  Ne5 {[%clk 0:00:35]} 22. Nxe5 {[%clk 0:00:51]}  fxe5 {[%clk 0:00:36]} 23. Bf3 {[%clk 0:00:51]}  Rh8 {[%clk 0:00:33]} 24. Kf2 {[%clk 0:00:46]}  Rf8 {[%clk 0:00:33]} 25. Kg3 {[%clk 0:00:45]}  e4 {[%clk 0:00:32]} 26. Bg4+ {[%clk 0:00:45]}  Kb8 {[%clk 0:00:32]} 27. Rh1 {[%clk 0:00:44]}  a6 {[%clk 0:00:31]} 28. Kg2 {[%clk 0:00:36]}  Ka7 {[%clk 0:00:29]} 29. Rh7 {[%clk 0:00:34]}  Kb6 {[%clk 0:00:28]} 30. Rh6+ {[%clk 0:00:33]}  Kb5 {[%clk 0:00:27]} 31. Rh7 {[%clk 0:00:33]}  Kb6 {[%clk 0:00:27]} 32. Rh6+ {[%clk 0:00:33]}  Ka7 {[%clk 0:00:26]} 33. Rh7 {[%clk 0:00:33]}  c6 {[%clk 0:00:26]} 34. Bd7 {[%clk 0:00:32]}  Kb6 {[%clk 0:00:26]} 35. Be6 {[%clk 0:00:32]}  Rb8 {[%clk 0:00:18]} 36. Rh5 {[%clk 0:00:28]}  Re8 {[%clk 0:00:17]} 37. Bf7 {[%clk 0:00:26]}  Rf8 {[%clk 0:00:17]} 38. Rh7 {[%clk 0:00:26]}  a5 {[%clk 0:00:17]} 39. bxa5+ {[%clk 0:00:24]}  Kxa5 {[%clk 0:00:18]} 40. Be6 {[%clk 0:00:21]}  b5 {[%clk 0:00:18]} 41. Ra7+ {[%clk 0:00:20]}  Kb6 {[%clk 0:00:18]} 42. Re7 {[%clk 0:00:20]}  Rf1 {[%clk 0:00:17]} 43. Bd7 {[%clk 0:00:18]}  Rd1 {[%clk 0:00:17]} 44. Re6 {[%clk 0:00:18]}  Rxd2+ {[%clk 0:00:17]} 45. Kg3 {[%clk 0:00:18]}  Rc2 {[%clk 0:00:18]} 46. Kf4 {[%clk 0:00:17]}  Rc3 {[%clk 0:00:18]} 47. Be8 {[%clk 0:00:16]}  Kb7 {[%clk 0:00:15]} 48. Re7+ {[%clk 0:00:15]}  Kb6 {[%clk 0:00:15]} 49. Re6 {[%clk 0:00:16]}  Kc7 {[%clk 0:00:15]} 50. Ke5 {[%clk 0:00:15]}  Rc5+ {[%clk 0:00:13]} 51. Kd4 {[%clk 0:00:14]}  Rd5+ {[%clk 0:00:13]} 52. Kc3 {[%clk 0:00:15]}  Rd6 {[%clk 0:00:14]} 53. Rxd6 {[%clk 0:00:14]}  Kxd6 {[%clk 0:00:14]} 54. Kb4 {[%clk 0:00:14]}  c5+ {[%clk 0:00:14]} 55. Ka5 {[%clk 0:00:13]}  c4 {[%clk 0:00:13]} 56. Kb4 {[%clk 0:00:14]}  c3 {[%clk 0:00:10]} 57. Kxc3 {[%clk 0:00:13]}  Kc5 {[%clk 0:00:11]} 58. Bf7 {[%clk 0:00:12]}  Bf1 {[%clk 0:00:11]} 59. Bg6 {[%clk 0:00:13]}  Be2 {[%clk 0:00:11]} 60. Bxe4 {[%clk 0:00:13]}  Bc4 {[%clk 0:00:12]} 61. Bd3 {[%clk 0:00:13]}  Bg8 {[%clk 0:00:11]} 62. Be2 {[%clk 0:00:13]}  Be6 {[%clk 0:00:11]} 63. Bd3 {[%clk 0:00:12]}  Bf7 {[%clk 0:00:12]} 64. Bc2 {[%clk 0:00:12]}  Be6 {[%clk 0:00:12]} 65. Bd3 {[%clk 0:00:13]}  Bf7 {[%clk 0:00:13]} 66. Be4 {[%clk 0:00:05]}  Be6 {[%clk 0:00:13]} 67. Bc2 {[%clk 0:00:05]}  Bf7 {[%clk 0:00:13]} 68. Bb3 {[%clk 0:00:05]}  Bg6 {[%clk 0:00:13]} 69. Bc2 {[%clk 0:00:06]}  Bf7 {[%clk 0:00:14]} 70. Bd3 {[%clk 0:00:06]}  Be6 {[%clk 0:00:14]} 71. Bc2 {[%clk 0:00:06]}  Bf7 {[%clk 0:00:15]} 1/2-1/2


[Site "https://www.chess.com"]

[Event "Titled Tuesday Blitz December 7 2021"]
[White "Silva Lucena, Cristian"]
[Black "Ceres, Dragos"]
[WhiteFideId "2232588"]
[BlackFideId "13905864"]
[WhiteElo "2223"]
[BlackElo "2094"]
[Result "0-1"]
[Round "04"]
[TimeControl "180+1"]
[Date "2021.12.07"]
[WhiteClock "0:00:01"]
[BlackClock "0:00:05"]

1. c4 {[%clk 0:02:58]}  e5 {[%clk 0:02:59]} 2. Nf3 {[%clk 0:02:56]}  Nc6 {[%clk 0:02:59]} 3. Nc3 {[%clk 0:02:56]}  Nf6 {[%clk 0:02:58]} 4. e4 {[%clk 0:02:56]}  Bb4 {[%clk 0:02:57]} 5. d3 {[%clk 0:02:53]}  d6 {[%clk 0:02:44]} 6. Be2 {[%clk 0:02:47]}  Bxc3+ {[%clk 0:02:42]} 7. bxc3 {[%clk 0:02:47]}  a6 {[%clk 0:02:43]} 8. O-O {[%clk 0:02:46]}  O-O {[%clk 0:02:41]} 9. Ne1 {[%clk 0:02:46]}  b5 {[%clk 0:02:38]} 10. cxb5 {[%clk 0:02:43]}  axb5 {[%clk 0:02:39]} 11. f4 {[%clk 0:02:43]}  exf4 {[%clk 0:02:19]} 12. Bxf4 {[%clk 0:02:42]}  Nd7 {[%clk 0:02:19]} 13. Nc2 {[%clk 0:02:35]}  Ra5 {[%clk 0:02:01]} 14. Ne3 {[%clk 0:02:26]}  Nc5 {[%clk 0:01:54]} 15. Qc2 {[%clk 0:02:20]}  Re8 {[%clk 0:01:51]} 16. Bf3 {[%clk 0:02:08]}  Ne5 {[%clk 0:01:46]} 17. Be2 {[%clk 0:01:59]}  Ng6 {[%clk 0:01:45]} 18. Bg3 {[%clk 0:01:56]}  Bb7 {[%clk 0:01:45]} 19. Nf5 {[%clk 0:01:53]}  f6 {[%clk 0:01:46]} 20. h4 {[%clk 0:01:52]}  Ne5 {[%clk 0:01:29]} 21. h5 {[%clk 0:01:29]}  Nexd3 {[%clk 0:01:27]} 22. Bxd3 {[%clk 0:01:28]}  Nxd3 {[%clk 0:01:28]} 23. Qxd3 {[%clk 0:01:28]}  Bxe4 {[%clk 0:01:29]} 24. Qd1 {[%clk 0:01:21]}  b4 {[%clk 0:01:16]} 25. cxb4 {[%clk 0:00:59]}  Rxf5 {[%clk 0:01:13]} 26. Rxf5 {[%clk 0:00:56]}  Bxf5 {[%clk 0:01:14]} 27. a4 {[%clk 0:00:56]}  Qb8 {[%clk 0:01:10]} 28. Qd4 {[%clk 0:00:54]}  Qb7 {[%clk 0:00:51]} 29. a5 {[%clk 0:00:48]}  Re4 {[%clk 0:00:46]} 30. a6 {[%clk 0:00:48]}  Qa8 {[%clk 0:00:32]} 31. Qf2 {[%clk 0:00:39]}  Bc8 {[%clk 0:00:28]} 32. b5 {[%clk 0:00:38]}  Bd7 {[%clk 0:00:25]} 33. b6 {[%clk 0:00:34]}  cxb6 {[%clk 0:00:20]} 34. Qxb6 {[%clk 0:00:33]}  Bc6 {[%clk 0:00:16]} 35. a7 {[%clk 0:00:27]}  Re8 {[%clk 0:00:16]} 36. Bxd6 {[%clk 0:00:16]}  Qb7 {[%clk 0:00:10]} 37. Qxb7 {[%clk 0:00:14]}  Bxb7 {[%clk 0:00:11]} 38. Rb1 {[%clk 0:00:14]}  Ba8 {[%clk 0:00:11]} 39. Rb8 {[%clk 0:00:14]}  Kf7 {[%clk 0:00:12]} 40. Kf2 {[%clk 0:00:11]}  Rg8 {[%clk 0:00:06]} 41. g4 {[%clk 0:00:10]}  Re8 {[%clk 0:00:06]} 42. Kg3 {[%clk 0:00:10]}  Bd5 {[%clk 0:00:04]} 43. Rxe8 {[%clk 0:00:05]}  Kxe8 {[%clk 0:00:05]} 44. Kf4 {[%clk 0:00:05]}  Kf7 {[%clk 0:00:06]} 45. Kf5 {[%clk 0:00:04]}  g6+ {[%clk 0:00:05]} 46. Kf4 {[%clk 0:00:04]}  Ke6 {[%clk 0:00:05]} 47. Bb8 {[%clk 0:00:01]}  g5+ {[%clk 0:00:05]} 0-1


[Site "https://www.chess.com"]

[Event "Titled Tuesday Blitz December 7 2021"]
[White "Solon, Nathan"]
[Black "Zierk, Steven"]
[WhiteFideId "2017229"]
[BlackFideId "2034255"]
[WhiteElo "2559"]
[BlackElo "2494"]
[Result "1/2-1/2"]
[Round "04"]
[TimeControl "180+1"]
[Date "2021.12.07"]
[WhiteClock "0:00:17"]
[BlackClock "0:00:03"]

1. d4 {[%clk 0:03:00]}  d5 {[%clk 0:02:59]} 2. c4 {[%clk 0:03:00]}  dxc4 {[%clk 0:02:57]} 3. Nf3 {[%clk 0:03:00]}  Nf6 {[%clk 0:02:57]} 4. e3 {[%clk 0:03:01]}  e6 {[%clk 0:02:57]} 5. Bxc4 {[%clk 0:03:00]}  c5 {[%clk 0:02:58]} 6. O-O {[%clk 0:03:01]}  Nc6 {[%clk 0:02:57]} 7. Nc3 {[%clk 0:03:00]}  Be7 {[%clk 0:02:57]} 8. dxc5 {[%clk 0:02:42]}  Qxd1 {[%clk 0:02:55]} 9. Rxd1 {[%clk 0:02:43]}  Bxc5 {[%clk 0:02:56]} 10. a3 {[%clk 0:02:28]}  O-O {[%clk 0:02:54]} 11. b4 {[%clk 0:02:28]}  Be7 {[%clk 0:02:54]} 12. Bb2 {[%clk 0:02:28]}  Bd7 {[%clk 0:02:50]} 13. Nb5 {[%clk 0:02:19]}  a6 {[%clk 0:02:34]} 14. Nd6 {[%clk 0:02:16]}  b5 {[%clk 0:02:31]} 15. Be2 {[%clk 0:02:10]}  Nd5 {[%clk 0:02:20]} 16. Ne4 {[%clk 0:02:03]}  Rfd8 {[%clk 0:02:12]} 17. Rac1 {[%clk 0:02:01]}  Be8 {[%clk 0:02:04]} 18. Nc5 {[%clk 0:01:58]}  Nb6 {[%clk 0:02:00]} 19. Nd4 {[%clk 0:01:52]}  Bf6 {[%clk 0:01:21]} 20. Nxc6 {[%clk 0:01:42]}  Rxd1+ {[%clk 0:01:21]} 21. Rxd1 {[%clk 0:01:40]}  Bxb2 {[%clk 0:01:21]} 22. Rd8 {[%clk 0:01:32]}  Rxd8 {[%clk 0:01:20]} 23. Nxd8 {[%clk 0:01:32]}  Bxa3 {[%clk 0:01:18]} 24. Nxa6 {[%clk 0:01:33]}  Nd5 {[%clk 0:01:19]} 25. Nb7 {[%clk 0:01:25]}  Nc3 {[%clk 0:00:23]} 26. Bd3 {[%clk 0:01:19]}  Kf8 {[%clk 0:00:23]} 27. Nc7 {[%clk 0:01:05]}  Bd7 {[%clk 0:00:22]} 28. Nd6 {[%clk 0:01:01]}  Bxb4 {[%clk 0:00:19]} 29. Ndxb5 {[%clk 0:01:01]}  Nxb5 {[%clk 0:00:18]} 30. Nxb5 {[%clk 0:00:58]}  e5 {[%clk 0:00:18]} 31. Nc7 {[%clk 0:00:55]}  Bc6 {[%clk 0:00:18]} 32. Bb5 {[%clk 0:00:53]}  Bb7 {[%clk 0:00:14]} 33. Bc4 {[%clk 0:00:52]}  Ba5 {[%clk 0:00:13]} 34. Bd5 {[%clk 0:00:48]}  Bc8 {[%clk 0:00:13]} 35. Nb5 {[%clk 0:00:48]}  Bb4 {[%clk 0:00:13]} 36. e4 {[%clk 0:00:44]}  Ke7 {[%clk 0:00:12]} 37. g3 {[%clk 0:00:44]}  f6 {[%clk 0:00:09]} 38. Kg2 {[%clk 0:00:41]}  Kd7 {[%clk 0:00:08]} 39. Na7 {[%clk 0:00:38]}  Ba6 {[%clk 0:00:08]} 40. Nc6 {[%clk 0:00:36]}  Bd6 {[%clk 0:00:08]} 41. Na5 {[%clk 0:00:35]}  Bc5 {[%clk 0:00:06]} 42. Nc4 {[%clk 0:00:35]}  Ke7 {[%clk 0:00:06]} 43. Kf3 {[%clk 0:00:34]}  g6 {[%clk 0:00:06]} 44. Ne3 {[%clk 0:00:35]}  h5 {[%clk 0:00:03]} 45. h4 {[%clk 0:00:35]}  Bd4 {[%clk 0:00:03]} 46. Nc4 {[%clk 0:00:34]}  Bc8 {[%clk 0:00:03]} 47. Ne3 {[%clk 0:00:34]}  Bd7 {[%clk 0:00:03]} 48. Nc4 {[%clk 0:00:34]}  Bg4+ {[%clk 0:00:03]} 49. Kg2 {[%clk 0:00:34]}  Be2 {[%clk 0:00:04]} 50. Ne3 {[%clk 0:00:33]}  Bd3 {[%clk 0:00:04]} 51. Kf3 {[%clk 0:00:33]}  f5 {[%clk 0:00:04]} 52. exf5 {[%clk 0:00:31]}  gxf5 {[%clk 0:00:05]} 53. Nc4 {[%clk 0:00:25]}  Kf6 {[%clk 0:00:05]} 54. Ne3 {[%clk 0:00:23]}  Bb5 {[%clk 0:00:04]} 55. Kg2 {[%clk 0:00:22]}  Be2 {[%clk 0:00:04]} 56. Bf3 {[%clk 0:00:22]}  Bxf3+ {[%clk 0:00:03]} 57. Kxf3 {[%clk 0:00:23]}  Ke6 {[%clk 0:00:03]} 58. Ke2 {[%clk 0:00:22]}  e4 {[%clk 0:00:03]} 59. Ng2 {[%clk 0:00:22]}  Be5 {[%clk 0:00:03]} 60. Ke3 {[%clk 0:00:22]}  Kf7 {[%clk 0:00:02]} 61. Ke2 {[%clk 0:00:18]}  Kf6 {[%clk 0:00:02]} 62. Ke3 {[%clk 0:00:18]}  Kf7 {[%clk 0:00:01]} 63. Ke2 {[%clk 0:00:18]}  Bb8 {[%clk 0:00:01]} 64. Ke3 {[%clk 0:00:16]}  Bc7 {[%clk 0:00:01]} 65. Ke2 {[%clk 0:00:17]}  Be5 {[%clk 0:00:01]} 66. Ke3 {[%clk 0:00:17]}  Bd6 {[%clk 0:00:02]} 67. Kd4 {[%clk 0:00:17]}  Bb8 {[%clk 0:00:02]} 68. Ke3 {[%clk 0:00:17]}  Ba7+ {[%clk 0:00:02]} 69. Ke2 {[%clk 0:00:17]}  Bb8 {[%clk 0:00:03]} 70. Ke3 {[%clk 0:00:17]} 1/2-1/2


[Site "https://www.chess.com"]

[Event "Titled Tuesday Blitz December 7 2021"]
[White "Svane, Frederik"]
[Black "Koellner, Ruben Gideon"]
[WhiteFideId "12923044"]
[BlackFideId "12993093"]
[WhiteElo "2459"]
[BlackElo "2553"]
[Result "0-1"]
[Round "04"]
[TimeControl "180+1"]
[Date "2021.12.07"]
[WhiteClock "0:00:02"]
[BlackClock "0:01:49"]

1. e4 {[%clk 0:03:00]}  d6 {[%clk 0:02:59]} 2. d4 {[%clk 0:03:01]}  Nf6 {[%clk 0:02:58]} 3. Bd3 {[%clk 0:03:01]}  e5 {[%clk 0:02:58]} 4. c3 {[%clk 0:03:01]}  Nbd7 {[%clk 0:02:57]} 5. Nf3 {[%clk 0:03:01]}  d5 {[%clk 0:02:57]} 6. dxe5 {[%clk 0:03:00]}  dxe4 {[%clk 0:02:55]} 7. exf6 {[%clk 0:03:00]}  exf3 {[%clk 0:02:55]} 8. Qxf3 {[%clk 0:02:59]}  Ne5 {[%clk 0:02:55]} 9. Qe4 {[%clk 0:02:51]}  Qxd3 {[%clk 0:02:54]} 10. Qxe5+ {[%clk 0:02:51]}  Be6 {[%clk 0:02:54]} 11. fxg7 {[%clk 0:02:45]}  O-O-O {[%clk 0:02:53]} 12. Nd2 {[%clk 0:02:36]}  Bxg7 {[%clk 0:02:49]} 13. Qxg7 {[%clk 0:01:51]}  Rhg8 {[%clk 0:02:48]} 14. Qf6 {[%clk 0:01:25]}  Bg4 {[%clk 0:01:57]} 15. f3 {[%clk 0:01:15]}  Rde8+ {[%clk 0:01:50]} 16. Kf2 {[%clk 0:00:02]}  Qe2+ {[%clk 0:01:49]} 17. Kg1 {[%clk 0:00:01]}  Qe3+ {[%clk 0:01:49]} 18. Kf1 {[%clk 0:00:02]}  Qe1# {[%clk 0:01:49]} 0-1


[Site "https://www.chess.com"]

[Event "Titled Tuesday Blitz December 7 2021"]
[White "Terletsky, Oleg"]
[Black "Kalogeris, Ioannis"]
[WhiteFideId "14116774"]
[BlackFideId "4239563"]
[WhiteElo "2055"]
[BlackElo "2287"]
[Result "0-1"]
[Round "04"]
[TimeControl "180+1"]
[Date "2021.12.07"]
[WhiteClock "0:01:07"]
[BlackClock "0:00:36"]

1. e4 {[%clk 0:03:00]}  e5 {[%clk 0:03:00]} 2. Nf3 {[%clk 0:03:00]}  Nc6 {[%clk 0:03:00]} 3. Nc3 {[%clk 0:03:00]}  Nf6 {[%clk 0:02:59]} 4. d4 {[%clk 0:03:00]}  exd4 {[%clk 0:02:59]} 5. Nxd4 {[%clk 0:03:01]}  Bb4 {[%clk 0:02:59]} 6. Nxc6 {[%clk 0:03:01]}  bxc6 {[%clk 0:02:59]} 7. Bd3 {[%clk 0:03:02]}  d5 {[%clk 0:02:59]} 8. exd5 {[%clk 0:03:02]}  cxd5 {[%clk 0:02:59]} 9. O-O {[%clk 0:03:02]}  O-O {[%clk 0:02:58]} 10. Bg5 {[%clk 0:03:02]}  c6 {[%clk 0:02:55]} 11. Qf3 {[%clk 0:03:01]}  h6 {[%clk 0:02:45]} 12. Bxf6 {[%clk 0:03:01]}  Qxf6 {[%clk 0:02:45]} 13. Qxf6 {[%clk 0:03:01]}  gxf6 {[%clk 0:02:46]} 14. Ne2 {[%clk 0:03:01]}  Rb8 {[%clk 0:02:44]} 15. Ng3 {[%clk 0:03:00]}  Bd6 {[%clk 0:02:35]} 16. b3 {[%clk 0:02:59]}  Be5 {[%clk 0:02:32]} 17. Rae1 {[%clk 0:02:59]}  Bc3 {[%clk 0:02:31]} 18. Re7 {[%clk 0:02:57]}  a5 {[%clk 0:02:25]} 19. a4 {[%clk 0:02:57]}  Be6 {[%clk 0:02:22]} 20. Nf5 {[%clk 0:02:56]}  Bb4 {[%clk 0:02:04]} 21. Rc7 {[%clk 0:02:54]}  Bxf5 {[%clk 0:01:45]} 22. Bxf5 {[%clk 0:02:55]}  c5 {[%clk 0:01:44]} 23. Rd1 {[%clk 0:02:49]}  Rfd8 {[%clk 0:01:40]} 24. Rc6 {[%clk 0:02:16]}  Kg7 {[%clk 0:01:38]} 25. Rd3 {[%clk 0:02:15]}  Re8 {[%clk 0:01:26]} 26. Rg3+ {[%clk 0:02:08]}  Kf8 {[%clk 0:01:25]} 27. h4 {[%clk 0:02:05]}  Re1+ {[%clk 0:01:23]} 28. Kh2 {[%clk 0:02:04]}  Bd2 {[%clk 0:00:55]} 29. Rd3 {[%clk 0:02:03]}  Bf4+ {[%clk 0:00:38]} 30. g3 {[%clk 0:02:03]}  Be5 {[%clk 0:00:39]} 31. Rxd5 {[%clk 0:01:55]}  Re2 {[%clk 0:00:37]} 32. Bd3 {[%clk 0:01:15]}  Rxf2+ {[%clk 0:00:37]} 33. Kg1 {[%clk 0:01:10]}  Bxg3 {[%clk 0:00:37]} 34. Rcxc5 {[%clk 0:01:07]}  Re8 {[%clk 0:00:36]} 0-1


[Site "https://www.chess.com"]